fUST/lending_fUST_20250708
["ID","MTS","AMOUNT","RATE_DAILY","PERIOD"]
[370202097,1751913050591,-669.48333758,0.00021917,2]
[370202109,1751913050694,-460.0,0.00019726,2]
[370202111,1751913050704,-151.0,0.00020607,2]
[370202113,1751913050714,-151.0,0.00020607,2]
[370202115,1751913050723,-151.0,0.00020607,2]
[370202117,1751913050732,-155.1200649,0.00021076,2]
[370202119,1751913050744,-431.8799351,0.00021076,2]
[370202139,1751913050930,-1000.0,0.00019178,2]
[370202141,1751913050940,-2830.5251992,0.00019676,2]
[370202142,1751913050950,-151.0,0.00020607,2]
[370202145,1751913050960,-151.0,0.00020607,2]
[370202147,1751913050970,-59.0,0.00021076,2]
[370202149,1751913050980,-309.75666242,0.00021917,2]
[370202151,1751913050989,-727.17,0.00021917,2]
[370202153,1751913050999,-1466.08,0.00021917,2]
[370202155,1751913051009,-460.0,0.00021917,2]
[370202157,1751913051018,-1937.98,0.00021917,2]
[370202158,1751913051027,-738.21,0.00021917,2]
[370202161,1751913051037,-942.1,0.00021917,2]
[370202163,1751913051047,-7.17813838,0.00021917,2]
[370202165,1751913051059,-478.12186162,0.00021917,2]
[370202167,1751913051068,-460.0,0.00021917,2]
[370202169,1751913051077,-808.84,0.00021917,2]
[370202171,1751913051086,-460.0,0.00021917,2]
[370202173,1751913051095,-1426.34,0.00021917,2]
[370202175,1751913051104,-787.89,0.00021917,2]
[370202177,1751913051113,-542.77565381,0.00021917,2]
[370202186,1751913051195,-460.0,0.00019178,2]
[370202188,1751913051207,-151.0,0.00020607,2]
[370202190,1751913051216,-151.0,0.00020607,2]
[370202192,1751913051226,-151.0,0.00020607,2]
[370202194,1751913051236,-151.0,0.00020607,2]
[370202196,1751913051245,-258.0,0.00021076,2]
[370206108,1751913091799,200.0,0.0002506,120]
[370206663,1751913150756,200.0,0.00025041,120]
[370206665,1751913210840,200.0,0.00024126,120]
[370206666,1751913271254,200.0,0.00024394,120]
[370206667,1751913330833,200.0,0.00024092,120]
[370206668,1751913390861,200.0,0.00025206,120]
[370206669,1751913450763,200.0,0.00025833,120]
[370206670,1751913510777,200.0,0.00026764,120]
[370206672,1751913570802,200.0,0.00026327,120]
[370206673,1751913630650,200.0,0.00027318,120]
[370206675,1751913691274,200.0,0.00026584,120]
[370206676,1751913750529,200.0,0.00024868,120]
[370206678,1751913810795,200.0,0.00026116,120]
[370206680,1751913870794,200.0,0.00025418,120]
[370206681,1751913876513,1067.31052131,0.00027397,120]
[370206682,1751913878113,191.491554,0.00027397,120]
[370206684,1751913931236,200.0,0.00024884,120]
[370206686,1751913959167,-204.05692,0.00018391,2]
[370206687,1751913959192,-1749.53992596,0.00018789,2]
[370206700,1751914232033,-961.93482961,0.00018789,2]
[370206738,1751914232546,-193.6366202,0.00019073,2]
[370206740,1751914232556,-2204.52600338,0.00019078,2]
[370206742,1751914232566,-747.44919417,0.00019173,2]
[370206756,1751914232689,-452.55080583,0.00019173,2]
[370206758,1751914232699,-194.98919417,0.00019174,2]
[370206760,1751914232712,-105.01080583,0.00019174,2]
[370206762,1751914232721,-300.0,0.00019174,2]
[370206764,1751914232731,-406.30168153,0.00019174,2]
[370206767,1751914232748,-271.69831847,0.00019174,2]
[370206769,1751914232757,-645.87895603,0.00019175,2]
[370206771,1751914232767,-500.0,0.00019175,2]
[370206773,1751914232776,-439.26802952,0.00019175,2]
[370206775,1751914232786,-311.02422537,0.00019175,2]
[370206777,1751914232795,-553.0,0.00019175,2]
[370206779,1751914232805,-607.5,0.00019175,2]
[370206781,1751914232815,-3033.12349788,0.00019175,2]
[370206783,1751914232825,-460.0,0.00019178,2]
[370206786,1751914232836,-460.0,0.00019178,2]
[370206787,1751914232845,-460.0,0.00019178,2]
[370206789,1751914232855,-460.0,0.00019178,2]
[370206791,1751914232865,-500.0,0.00019178,2]
[370206793,1751914232874,-500.0,0.00019178,2]
[370206795,1751914232884,-500.0,0.00019178,2]
[370206797,1751914232893,-460.0,0.00019178,2]
[370206800,1751914232903,-503.3567372,0.00019178,2]
[370206802,1751914232914,-173.13473538,0.00019178,2]
[370206804,1751914232925,-460.0,0.00019178,2]
[370206806,1751914232936,-460.0,0.00019178,2]
[370206808,1751914232945,-460.0,0.00019178,2]
[370206810,1751914232955,-2945.72,0.00019178,2]
[370206812,1751914232964,-460.0,0.00019178,2]
[370206814,1751914232975,-460.0,0.00019178,2]
[370206816,1751914232985,-558.09,0.00019178,2]
[370206818,1751914232995,-737.81,0.00019178,2]
[370206820,1751914233005,-693.63,0.00019178,2]
[370206822,1751914233015,-460.0,0.00019178,2]
[370206824,1751914233024,-1038.47,0.00019178,2]
[370206826,1751914233034,-460.0,0.00019178,2]
[370206828,1751914233044,-460.0,0.00019178,2]
[370206830,1751914233054,-173.18,0.00019178,2]
[370206832,1751914233064,-510.66,0.00019178,2]
[370206834,1751914233073,-522.9,0.00019178,2]
[370206836,1751914233083,-460.0,0.00019178,2]
[370206838,1751914233094,-726.03,0.00019178,2]
[370206840,1751914233104,-460.0,0.00019178,2]
[370206842,1751914233114,-18.35170285,0.00019178,2]
[370206906,1751914238114,-248.9984424,0.00018175,2]
[370206908,1751914238124,-500.0,0.00019176,2]
[370206910,1751914238133,-609.72846526,0.00019176,2]
[370206912,1751914238142,-441.64829715,0.00019178,2]
[370206914,1751914238157,-667.32,0.00019178,2]
[370206916,1751914238167,-460.0,0.00019178,2]
[370206918,1751914238177,-460.0,0.00019178,2]
[370206920,1751914238186,-460.0,0.00019178,2]
[370206922,1751914238196,-711.94,0.00019178,2]
[370206924,1751914238205,-460.0,0.00019178,2]
[370206926,1751914238215,-460.0,0.00019178,2]
[370206927,1751914238225,-606.63,0.00019178,2]
[370206929,1751914238234,-460.0,0.00019178,2]
[370206931,1751914238243,-588.79,0.00019178,2]
[370206933,1751914238252,-460.0,0.00019178,2]
[370206935,1751914238261,-460.0,0.00019178,2]
[370206937,1751914238270,-460.0,0.00019178,2]
[370206939,1751914238280,-572.92395136,0.00019178,2]
[370206943,1751914238312,-1728.19604864,0.00019178,2]
[370206945,1751914238323,-460.0,0.00019178,2]
[370206947,1751914238332,-460.0,0.00019178,2]
[370206949,1751914238342,-1010.32,0.00019178,2]
[370206951,1751914238351,-745.1,0.00019178,2]
[370206953,1751914238361,-1453.48,0.00019178,2]
[370206955,1751914238371,-460.0,0.00019178,2]
[370206957,1751914238381,-1395.92,0.00019178,2]
[370206959,1751914238394,-545.38,0.00019178,2]
[370206961,1751914238404,-460.0,0.00019178,2]
[370206963,1751914238414,-2987.89,0.00019178,2]
[370206965,1751914238424,-460.0,0.00019178,2]
[370206967,1751914238433,-187.97924,0.00019178,2]
[370206969,1751914238442,-460.0,0.00019451,2]
[370206971,1751914238451,-597.28478944,0.00019452,2]
[370206973,1751914238461,-460.0,0.00019452,2]
[370206975,1751914238470,-460.0,0.00019452,2]
[370206977,1751914238479,-558.09,0.00019452,2]
[370206979,1751914238489,-737.81,0.00019452,2]
[370206981,1751914238498,-693.63,0.00019452,2]
[370206983,1751914238507,-460.0,0.00019452,2]
[370206985,1751914238518,-1038.47,0.00019452,2]
[370206987,1751914238527,-460.0,0.00019452,2]
[370206989,1751914238537,-460.0,0.00019452,2]
[370206991,1751914238547,-510.66,0.00019452,2]
[370206993,1751914238556,-522.9,0.00019452,2]
[370206995,1751914238566,-460.0,0.00019452,2]
[370206997,1751914238575,-726.03,0.00019452,2]
[370206999,1751914238584,-460.0,0.00019452,2]
[370207001,1751914238594,-460.0,0.00019452,2]
[370207003,1751914238603,-667.32,0.00019452,2]
[370207005,1751914238613,-460.0,0.00019452,2]
[370207006,1751914238622,-460.0,0.00019452,2]
[370207007,1751914238631,-460.0,0.00019452,2]
[370207008,1751914238640,-711.94,0.00019452,2]
[370207009,1751914238649,-460.0,0.00019452,2]
[370207010,1751914238658,-606.63,0.00019452,2]
[370207011,1751914238667,-460.0,0.00019452,2]
[370207012,1751914238676,-584.95687514,0.00019452,2]
[370207013,1751914238685,-2301.12,0.00019452,2]
[370207014,1751914238694,-460.0,0.00019452,2]
[370207015,1751914238704,-460.0,0.00019452,2]
[370207016,1751914238713,-1010.32,0.00019452,2]
[370207017,1751914238722,-745.1,0.00019452,2]
[370207018,1751914238731,-1453.48,0.00019452,2]
[370207019,1751914238740,-460.0,0.00019452,2]
[370207020,1751914238749,-1395.92,0.00019452,2]
[370207021,1751914238758,-545.38,0.00019452,2]
[370207022,1751914238768,-460.0,0.00019452,2]
[370207023,1751914238777,-2987.89,0.00019452,2]
[370207024,1751914238791,-460.0,0.00019452,2]
[370207025,1751914238801,-151.0,0.00019624,2]
[370207026,1751914238810,-151.0,0.00019721,2]
[370207027,1751914238819,-460.0,0.00019725,2]
[370207029,1751914238829,-155.0,0.00019725,2]
[370207031,1751914238838,-275.21928,0.00019726,2]
[370207033,1751914238848,-275.21928,0.00019726,2]
[370207035,1751914238857,-460.0,0.00019726,2]
[370207037,1751914238867,-460.0,0.00019726,2]
[370207039,1751914238876,-558.09,0.00019726,2]
[370207041,1751914238885,-737.81,0.00019726,2]
[370207043,1751914238895,-693.63,0.00019726,2]
[370207045,1751914238904,-460.0,0.00019726,2]
[370207047,1751914238914,-1038.47,0.00019726,2]
[370207049,1751914238923,-460.0,0.00019726,2]
[370207051,1751914238932,-364.37,0.00019726,2]
[370207053,1751914238941,-510.66,0.00019726,2]
[370207055,1751914238951,-460.0,0.00019726,2]
[370207057,1751914238960,-522.9,0.00019726,2]
[370207059,1751914238969,-726.03,0.00019726,2]
[370207060,1751914238978,-460.0,0.00019726,2]
[370207062,1751914238988,-460.0,0.00019726,2]
[370207064,1751914238997,-667.32,0.00019726,2]
[370207066,1751914239007,-460.0,0.00019726,2]
[370207068,1751914239016,-460.0,0.00019726,2]
[370207070,1751914239025,-460.0,0.00019726,2]
[370207072,1751914239035,-711.94,0.00019726,2]
[370207074,1751914239044,-601.67,0.00019726,2]
[370207076,1751914239053,-606.63,0.00019726,2]
[370207078,1751914239063,-460.0,0.00019726,2]
[370207080,1751914239073,-2301.12,0.00019726,2]
[370207082,1751914239082,-460.0,0.00019726,2]
[370207084,1751914239091,-550.74,0.00019726,2]
[370207086,1751914239100,-1010.32,0.00019726,2]
[370207088,1751914239109,-745.1,0.00019726,2]
[370207090,1751914239119,-1453.48,0.00019726,2]
[370207092,1751914239128,-460.0,0.00019726,2]
[370207094,1751914239138,-1395.92,0.00019726,2]
[370207096,1751914239147,-545.38,0.00019726,2]
[370207098,1751914239156,-460.0,0.00019726,2]
[370207100,1751914239165,-460.0,0.00019726,2]
[370207102,1751914239175,-2987.89,0.00019726,2]
[370207104,1751914239184,-151.0,0.00019799,2]
[370207106,1751914239194,-151.0,0.00019799,2]
[370207108,1751914239203,-160.0,0.00019899,2]
[370207110,1751914239213,-160.0,0.00019899,2]
[370207112,1751914239223,-215.21338352,0.00019899,2]
[370207114,1751914239232,-160.0,0.00019899,2]
[370207116,1751914239241,-214.06929976,0.00019899,2]
[370207118,1751914239251,-848.27993403,0.00019899,2]
[370207120,1751914239261,-160.0,0.00019899,2]
[370207122,1751914239270,-230.48668418,0.00019899,2]
[370207124,1751914239279,-160.0,0.00019899,2]
[370207126,1751914239289,-12584.46609586,0.00019899,2]
[370207128,1751914239298,-837.79946008,0.00019899,2]
[370207130,1751914239307,-2204.52600334,0.00019933,2]
[370207132,1751914239320,-500.0,0.00019963,2]
[370207134,1751914239329,-460.0,0.00019999,2]
[370207136,1751914239338,-275.21928,0.0002,2]
[370207138,1751914239348,-275.21928,0.0002,2]
[370207140,1751914239359,-460.0,0.0002,2]
[370207142,1751914239369,-460.0,0.0002,2]
[370207144,1751914239378,-558.09,0.0002,2]
[370207146,1751914239388,-737.81,0.0002,2]
[370207148,1751914239399,-693.63,0.0002,2]
[370207150,1751914239408,-1038.47,0.0002,2]
[370207152,1751914239418,-460.0,0.0002,2]
[370207154,1751914239428,-510.66,0.0002,2]
[370207156,1751914239437,-460.0,0.0002,2]
[370207158,1751914239447,-522.9,0.0002,2]
[370207160,1751914239456,-726.03,0.0002,2]
[370207162,1751914239466,-460.0,0.0002,2]
[370207164,1751914239475,-460.0,0.0002,2]
[370207166,1751914239485,-667.32,0.0002,2]
[370207168,1751914239494,-460.0,0.0002,2]
[370207170,1751914239504,-460.0,0.0002,2]
[370207172,1751914239513,-460.0,0.0002,2]
[370207174,1751914239523,-711.94,0.0002,2]
[370207176,1751914239532,-606.63,0.0002,2]
[370207178,1751914239541,-460.0,0.0002,2]
[370207180,1751914239551,-460.0,0.0002,2]
[370207182,1751914239561,-2301.12,0.0002,2]
[370207184,1751914239571,-1010.32,0.0002,2]
[370207187,1751914239581,-745.1,0.0002,2]
[370207189,1751914239591,-1453.48,0.0002,2]
[370207191,1751914239600,-460.0,0.0002,2]
[370207193,1751914239609,-1395.92,0.0002,2]
[370207195,1751914239620,-545.38,0.0002,2]
[370207196,1751914239630,-460.0,0.0002,2]
[370207198,1751914239641,-2987.89,0.0002,2]
[370207201,1751914239653,-460.0,0.0002,2]
[370207203,1751914239666,-501.36907356,0.0002009,2]
[370207205,1751914239679,-500.0,0.0002009,2]
[370207206,1751914239688,-516.8785258,0.0002009,2]
[370207209,1751914239697,-318.09057501,0.0002009,2]
[370207211,1751914239707,-460.0,0.00020273,2]
[370207213,1751914239716,-460.0,0.00020273,2]
[370207214,1751914239726,-558.09,0.00020273,2]
[370207217,1751914239736,-737.81,0.00020273,2]
[370207219,1751914239745,-693.63,0.00020273,2]
[370207221,1751914239755,-1038.47,0.00020273,2]
[370207223,1751914239764,-460.0,0.00020273,2]
[370207225,1751914239774,-510.66,0.00020273,2]
[370207226,1751914239783,-460.0,0.00020273,2]
[370207228,1751914239792,-522.9,0.00020273,2]
[370207230,1751914239802,-726.03,0.00020273,2]
[370207232,1751914239811,-288.42,0.00020273,2]
[370207234,1751914239821,-460.0,0.00020273,2]
[370207236,1751914239831,-667.32,0.00020273,2]
[370207238,1751914239840,-460.0,0.00020273,2]
[370207240,1751914239849,-460.0,0.00020273,2]
[370207242,1751914239859,-460.0,0.00020273,2]
[370207244,1751914239868,-711.94,0.00020273,2]
[370207246,1751914239879,-606.63,0.00020273,2]
[370207262,1751914240020,-460.0,0.00020273,2]
[370207264,1751914240030,-460.0,0.00020273,2]
[370207266,1751914240039,-2301.12,0.00020273,2]
[370207268,1751914240049,-414.56689064,0.00020273,2]
[370216037,1751915148144,-221.189323,0.00018596,2]
[370216038,1751915148169,-267.0,0.0001879,2]
[370216039,1751915148191,-300.0,0.0001879,2]
[370216040,1751915148211,-160.0,0.00018791,2]
[370216041,1751915148232,-304.1323104,0.00018791,2]
[370216042,1751915148254,-48.01698433,0.00018791,2]
[370216043,1751915154085,-1168.51225728,0.00018791,2]
[370216044,1751915154107,-1131.2656276,0.00018791,2]
[370216045,1751915169722,191.491554,0.00027397,120]
[370216046,1751915213080,-153.26018245,0.0001879,2]
[370216047,1751915282218,1605.92516601,0.00017852,2]
[370216048,1751915284317,4866.11696642,0.00017852,2]
[370216049,1751915286638,7595.70445227,0.00017852,2]
[370216096,1751915432505,-316.0,0.0001879,2]
[370216097,1751915432515,-440.05033923,0.00018881,2]
[370216098,1751915432525,-1582.07263509,0.000189,2]
[370216099,1751915432535,-300.0,0.00019177,2]
[370216101,1751915432545,-300.0,0.00019177,2]
[370216103,1751915432555,-500.0,0.00019177,2]
[370216105,1751915432564,-500.0,0.00019177,2]
[370216108,1751915432574,-356.19315298,0.00019177,2]
[370216110,1751915432583,-460.0,0.00019178,2]
[370216113,1751915432593,-461.18158916,0.00019178,2]
[370216117,1751915432602,-460.0,0.00019178,2]
[370216119,1751915432611,-460.0,0.00019178,2]
[370216121,1751915432620,-460.0,0.00019178,2]
[370216123,1751915432631,-460.0,0.00019178,2]
[370216125,1751915432640,-460.0,0.00019178,2]
[370216127,1751915432649,-460.0,0.00019178,2]
[370216130,1751915432663,-460.0,0.00019178,2]
[370216132,1751915432673,-152.87,0.00019178,2]
[370216134,1751915432683,-460.0,0.00019178,2]
[370216136,1751915432693,-460.0,0.00019178,2]
[370216138,1751915432703,-460.0,0.00019178,2]
[370216140,1751915432713,-517.75,0.00019178,2]
[370216142,1751915432722,-460.0,0.00019178,2]
[370216144,1751915432733,-460.0,0.00019178,2]
[370216146,1751915432745,-460.0,0.00019178,2]
[370216148,1751915432755,-460.0,0.00019178,2]
[370216150,1751915432765,-460.0,0.00019178,2]
[370216152,1751915432774,-460.0,0.00019178,2]
[370216154,1751915432783,-356.27553127,0.00019178,2]
[370216156,1751915432792,-460.0,0.00019178,2]
[370216158,1751915432802,-460.0,0.00019178,2]
[370216160,1751915432812,-2984.63,0.00019178,2]
[370216162,1751915432822,-460.0,0.00019178,2]
[370216164,1751915432832,-460.0,0.00019178,2]
[370216166,1751915432842,-460.0,0.00019178,2]
[370216168,1751915432851,-1022.97,0.00019178,2]
[370216170,1751915432861,-460.0,0.00019178,2]
[370216172,1751915432871,-460.0,0.00019178,2]
[370216174,1751915432880,-460.0,0.00019178,2]
[370216176,1751915432890,-460.0,0.00019178,2]
[370216178,1751915432900,-460.0,0.00019178,2]
[370216180,1751915432909,-748.06,0.00019178,2]
[370216182,1751915432921,-460.0,0.00019178,2]
[370216184,1751915432931,-242.61499414,0.00019178,2]
[370216186,1751915432944,-217.38500586,0.00019178,2]
[370216188,1751915432954,-460.0,0.00019178,2]
[370216190,1751915432963,-451.29105736,0.00019178,2]
[370216192,1751915432973,-1123.87202518,0.00019178,2]
[370216193,1751915432984,-329.60797482,0.00019178,2]
[370216194,1751915432994,-557.27,0.00019178,2]
[370216195,1751915433003,-460.0,0.00019178,2]
[370216196,1751915433012,-460.0,0.00019178,2]
[370216197,1751915433022,-460.0,0.00019178,2]
[370216198,1751915433032,-775.4495139,0.00019178,2]
[370216199,1751915433045,-291.0204861,0.00019178,2]
[370216200,1751915433054,-263.21403739,0.00019178,2]
[370216214,1751915438458,-196.78596261,0.00019178,2]
[370216216,1751915438468,-389.69898026,0.00019178,2]
[370216218,1751915438479,-70.30101974,0.00019178,2]
[370216219,1751915438489,-460.0,0.00019178,2]
[370216220,1751915438498,-460.0,0.00019178,2]
[370216221,1751915438508,-98.66247914,0.00019178,2]
[370216222,1751915438566,-963.72752086,0.00019178,2]
[370216223,1751915438575,-460.0,0.00019178,2]
[370216224,1751915438585,-460.0,0.00019178,2]
[370216225,1751915438594,-460.0,0.00019178,2]
[370216226,1751915438604,-567.76,0.00019178,2]
[370216227,1751915438615,-697.19,0.00019178,2]
[370216228,1751915438624,-460.0,0.00019178,2]
[370216229,1751915438634,-724.57,0.00019178,2]
[370216230,1751915438644,-460.0,0.00019178,2]
[370216231,1751915438656,-460.0,0.00019178,2]
[370216232,1751915438667,-460.0,0.00019178,2]
[370216233,1751915438677,-460.0,0.00019178,2]
[370216234,1751915438686,-460.0,0.00019178,2]
[370216235,1751915438696,-460.0,0.00019178,2]
[370216236,1751915438707,-460.0,0.00019178,2]
[370216238,1751915438716,-460.0,0.00019178,2]
[370216239,1751915438725,-460.0,0.00019178,2]
[370216240,1751915438734,-460.0,0.00019178,2]
[370216241,1751915438743,-868.93,0.00019178,2]
[370216242,1751915438753,-460.0,0.00019178,2]
[370216243,1751915438761,-460.0,0.00019178,2]
[370216244,1751915438771,-460.0,0.00019178,2]
[370216245,1751915438780,-460.0,0.00019178,2]
[370216246,1751915438788,-460.0,0.00019178,2]
[370216247,1751915438797,-460.0,0.00019178,2]
[370216248,1751915438806,-460.0,0.00019178,2]
[370216249,1751915438815,-460.0,0.00019178,2]
[370216250,1751915438824,-460.0,0.00019178,2]
[370216251,1751915438833,-460.0,0.00019178,2]
[370216252,1751915438842,-460.0,0.00019178,2]
[370216253,1751915438851,-460.0,0.00019178,2]
[370216254,1751915438860,-460.0,0.00019178,2]
[370216255,1751915438869,-460.0,0.00019178,2]
[370216256,1751915438878,-713.5,0.00019178,2]
[370216257,1751915438888,-460.0,0.00019178,2]
[370216258,1751915438897,-460.0,0.00019178,2]
[370216259,1751915438906,-460.0,0.00019178,2]
[370216260,1751915438915,-460.0,0.00019178,2]
[370216261,1751915438925,-460.0,0.00019178,2]
[370216262,1751915438934,-460.0,0.00019178,2]
[370216263,1751915438943,-716.92,0.00019178,2]
[370216264,1751915438952,-460.0,0.00019178,2]
[370216265,1751915438961,-2460.91,0.00019178,2]
[370216266,1751915438970,-460.0,0.00019178,2]
[370216267,1751915438979,-460.0,0.00019178,2]
[370216268,1751915438990,-777.79,0.00019178,2]
[370216269,1751915438999,-460.0,0.00019178,2]
[370216270,1751915439010,-575.67,0.00019178,2]
[370216271,1751915439019,-460.0,0.00019178,2]
[370216272,1751915439028,-1635.05,0.00019178,2]
[370216273,1751915439038,-460.0,0.00019178,2]
[370216274,1751915439046,-460.0,0.00019178,2]
[370216275,1751915439055,-460.0,0.00019178,2]
[370216276,1751915439066,-460.0,0.00019178,2]
[370216277,1751915439075,-460.0,0.00019178,2]
[370216278,1751915439084,-460.0,0.00019178,2]
[370216279,1751915439094,-460.0,0.00019178,2]
[370216280,1751915439103,-187.97924,0.00019178,2]
[370216281,1751915439112,-1255.43248033,0.00019178,2]
[370216282,1751915439121,-561.82883865,0.00019305,2]
[370216283,1751915439130,-460.0,0.00019452,2]
[370216284,1751915439140,-460.0,0.00019452,2]
[370216285,1751915439150,-460.0,0.00019452,2]
[370216286,1751915439160,-219.0205892,0.00019452,2]
[370216287,1751915439170,-460.0,0.00019452,2]
[370216288,1751915439179,-364.45,0.00019452,2]
[370216289,1751915439189,-517.75,0.00019452,2]
[370216290,1751915439198,-460.0,0.00019452,2]
[370216291,1751915439207,-460.0,0.00019452,2]
[370216292,1751915439217,-460.0,0.00019452,2]
[370216293,1751915439226,-460.0,0.00019452,2]
[370216294,1751915439236,-460.0,0.00019452,2]
[370216295,1751915439245,-460.0,0.00019452,2]
[370216296,1751915439256,-460.0,0.00019452,2]
[370216297,1751915439266,-460.0,0.00019452,2]
[370216298,1751915439277,-2984.63,0.00019452,2]
[370216299,1751915439288,-460.0,0.00019452,2]
[370216300,1751915439297,-1022.97,0.00019452,2]
[370216301,1751915439307,-460.0,0.00019452,2]
[370216302,1751915439317,-460.0,0.00019452,2]
[370216303,1751915439326,-460.0,0.00019452,2]
[370216304,1751915439335,-460.0,0.00019452,2]
[370216305,1751915439345,-460.0,0.00019452,2]
[370216306,1751915439354,-748.06,0.00019452,2]
[370216307,1751915439363,-498.05,0.00019452,2]
[370216308,1751915439373,-460.0,0.00019452,2]
[370216309,1751915439382,-460.0,0.00019452,2]
[370216310,1751915439391,-1453.48,0.00019452,2]
[370216311,1751915439401,-557.27,0.00019452,2]
[370216312,1751915439410,-460.0,0.00019452,2]
[370216313,1751915439419,-460.0,0.00019452,2]
[370216314,1751915439429,-460.0,0.00019452,2]
[370216315,1751915439438,-1066.47,0.00019452,2]
[370216316,1751915439448,-460.0,0.00019452,2]
[370216317,1751915439457,-460.0,0.00019452,2]
[370216318,1751915439466,-460.0,0.00019452,2]
[370216319,1751915439475,-1062.39,0.00019452,2]
[370216320,1751915439484,-460.0,0.00019452,2]
[370216321,1751915439493,-460.0,0.00019452,2]
[370216322,1751915439502,-460.0,0.00019452,2]
[370216323,1751915439512,-567.76,0.00019452,2]
[370216324,1751915439521,-697.19,0.00019452,2]
[370216325,1751915439530,-460.0,0.00019452,2]
[370216326,1751915439540,-724.57,0.00019452,2]
[370216327,1751915439550,-460.0,0.00019452,2]
[370216328,1751915439559,-460.0,0.00019452,2]
[370216329,1751915439569,-460.0,0.00019452,2]
[370216330,1751915439578,-165.2,0.00019452,2]
[370216331,1751915439588,-460.0,0.00019452,2]
[370216332,1751915439597,-460.0,0.00019452,2]
[370216333,1751915439606,-868.93,0.00019452,2]
[370216334,1751915439616,-460.0,0.00019452,2]
[370216335,1751915439625,-460.0,0.00019452,2]
[370216336,1751915439635,-513.34,0.00019452,2]
[370216337,1751915439647,-460.0,0.00019452,2]
[370216338,1751915439658,-460.0,0.00019452,2]
[370216339,1751915439670,-488.23430532,0.00019452,2]
[370216340,1751915439679,-460.0,0.00019452,2]
[370216341,1751915439689,-460.0,0.00019452,2]
[370216342,1751915439699,-460.0,0.00019452,2]
[370216343,1751915439708,-460.0,0.00019452,2]
[370216344,1751915439718,-713.5,0.00019452,2]
[370216345,1751915439727,-460.0,0.00019452,2]
[370216346,1751915439736,-460.0,0.00019452,2]
[370216347,1751915439746,-460.0,0.00019452,2]
[370216348,1751915439756,-460.0,0.00019452,2]
[370216349,1751915439766,-201.47067667,0.00019452,2]
[370216350,1751915439775,-460.0,0.00019452,2]
[370216351,1751915439786,-716.92,0.00019452,2]
[370216352,1751915439796,-460.0,0.00019452,2]
[370216353,1751915439806,-2460.91,0.00019452,2]
[370216354,1751915439817,-460.0,0.00019452,2]
[370216355,1751915439828,-460.0,0.00019452,2]
[370216356,1751915439839,-777.79,0.00019452,2]
[370216357,1751915439849,-460.0,0.00019452,2]
[370216358,1751915439858,-575.67,0.00019452,2]
[370216359,1751915439868,-460.0,0.00019452,2]
[370216360,1751915439879,-1635.05,0.00019452,2]
[370216361,1751915439889,-460.0,0.00019452,2]
[370216362,1751915439900,-460.0,0.00019452,2]